{"text_format":"1","workbook":"xlsx","n_sheets":3,"sheets":["Variabelliste - informasjon","Variabelliste - velg variabler","kodeliste pers_as_stat"],"not_rendered":{"charts":0,"images":1,"macros":1,"external_links":0,"defined_names":1,"comments":1,"pivot_tables":0},"unopened":[],"bounds":{"document_bytes":16777216,"sheet_cells":100000,"rows_first":2000,"rows_last":500,"rows_between":2000,"halvings":0,"cell_chars":16384,"cell_head_chars":4096},"cells_cut":0,"cells_raw":0,"read":"whole","date_system":"1900"}

{"sheet":"Variabelliste - informasjon","index":0,"n_rows":43,"n_cols":5,"rows_kept":43,"cut":false,"hidden":false,"merged":[[31,3,32,4],[33,2,34,2],[33,3,34,4],[0,0,1,1],[35,2,36,2],[39,1,39,2],[23,2,24,2],[25,2,26,2],[27,2,28,2],[29,2,30,2],[31,2,32,2]]}
[null,null,"VARIABELLISTE - INFORMASJON"]
[null,null,"Sysselsetting, inkludert de som er utenfor arbeidsstyrken"]
[]
[]
[null,"Statistikkområde:","Arbeid og lønn på ssb.no"]
[null,null,"Nærmere in forholdet mellom gammel og ny statistikk (A-ordningen)"]
[]
[null,"Dokumentasjon:","Dokumentasjon av registerbasert sysselsettingsstatistikk (Notater 8/2010)"]
[null,null,"Måling av langsiktige endringer i yrkesstrukturen (Notater 2016/36)"]
[null,null,"Dokumentasjon av System for persondata - SFP9 (Notater 47/2011)"]
[]
[null,"Omfang:","Bosatte personer 15-74 år i referanseuken"]
[null,null,"SFP-data omfatter i tillegg personer som er 75 år og eldre, og ikke-bosatte som ellers inngår i populasjonen (er lønnstakere, helt ledige, i utdanning eller på ytelse)."]
[null,"Referanseperiode:","Årlig, 3. uke i november. Fra og med statistikkåret 2000."]
[null,"Seneste oppdatering:","I forbindelse med frigivning av statistikk for den aktuelle årgangen."]
[null,"Enhet:","Person"]
[null,"Dispensasjon:","SSB er dispensasjonsgiver for alle variablene i denne listen. Søknaden om data (eget skjema) gjelder også som dispensasjonssøknad."]
[null,"Annen informasjon fra SSB:","Variabellisten er todelt (publiseringsgrunnlag for regsys og SFP), og med overlappende variabler. Se dokumentasjon i lenkene ovenfor for mer informasjon.\n\nFra 2015 erstatter A-meldingen tidligere kilder for datafangst til registerbasert sysselsettingsstatistikk. Se artikkel på statistikk-sidene, jf. lenke ovenfor."]
[]
[null,null,"NB!: Enkelte variabler er også tilgjengelig på microdata.no.  Denne tjenesten er åpen for forskere, PhD- og masterstudenter tilknyttet godkjente forskningsinstitusjoner: https://microdata.no/ "]
[]
[]
[null,"OPPGI INFORMASJON:"]
[null,"Dato for innsending av bestilling:",null,"*"]
[]
[null,"Prosjektnavn:",null,"*"]
[]
[null,"Institusjon:",null,"*"]
[]
[null,"Utfylt av:",null,"*"]
[]
[null,"SSB saksnummer:",null,"Oppgis hvis du har mottatt det fra SSB."]
[]
[null,"Angi om databestillingen inkluderer",null,"Nyere data kan foreligge på avtaletidspunktet."]
[null,"siste tilgjengelige årganger (Ja/Nei):"]
[null,"Evt. kommentarer til SSB:"]
[]
[null,null,"* Obligatoriske felt"]
[]
[null,"Gå til variabelliste og velg variabler"]
[]
[]
["Sist oppdatert 30. april 2019",null,null,null,"Statistisk sentralbyrå"]

{"sheet":"Variabelliste - velg variabler","index":1,"n_rows":122,"n_cols":26,"rows_kept":122,"cut":false,"hidden":false,"merged":[[0,0,1,0],[3,17,4,17],[3,7,4,7],[3,8,4,8],[3,10,4,10],[3,5,4,5],[118,1,118,6],[3,4,4,4],[3,6,4,6],[3,2,3,3],[3,1,4,1]]}
[null,"VARIABELLISTE - VELG VARIABLER"]
[null,"Sysselsetting og \"SFP\"",null,null,null,{"$f":"IF(OR(B8=\"x\",B11=\"x\",B14=\"x\",B16=\"x\",B17=\"x\",B19=\"x\",B25=\"x\",B27=\"x\",B30=\"x\",B31=\"x\"),5,\"0\")","v":"0"},"x",{"$f":"F2","v":"0"}]
[null,null,null,null,null,null,null,null,null,null,null,null,null,null,null,null,null,null,"RAIRD"]
[null,"Kryss (x) for bestilling:","Oppgi perioden du ønsker data for",null,"Tilgjengelige årganger","Finnes også  på microdata.no","Filter","Definisjoner","Gjeldende\nkodelister",null,"Variabelnavn",null,null,null,null,null,null,"Registereier"]
["Variabelbeskrivelse",null,"Fra år:","Til år:",null,null,null,null,null,null,null,"Variabelnavn 2015-","KOMMENTARER RELEVANT FOR SAKSBEHANDLING","Filplassering","Filnavn","Alternativ kilde","Kommentar",null,"Datatype","Temporality","Emne","Regional dekning","Enhet","Spes/pop","Måleenhet","Kommentar"]
[null,null,null,null,null,null,{"$f":"IF(COUNTIF(G7,\"x\")>0,\"x\",\"0\")","v":"0"},null,null,null,null,null,"Kildevariabler til og med 2014 inkluderes i leveransen."]
["VARIABLER FRA REGISTERBASERT SYSSELSETTINGSSTATISTIKK",null,null,null,null,null,{"$f":"IF(COUNTIF(G8:G34,\"x\")>0,\"x\",\"0\")","v":"0"},null,null,null,null,null,"Fra 2015 er data fra A-ordningen, Aa-registeret o.a. kilder er avsluttet."]
["Løpenummer person",null,null,null,"2000-2017","microdata.no",{"$f":"B8","v":0},"definisjon",null,null,"wxx_xxxx_lopenr_person",null,"fra 2015 ligger også snr på fila (pers_id_ssb), anbefaler bruk fortsatt fnr","$ARBMARK/oppdrag/filtilgang/s380/beredskapsfiler/wk48","regsysÅÅÅÅk4",null,null,"SSB","string","status","Arbeid og lønn","Norge","Person",null,"N/A"]
["Løpenummer virksomhet (bedrift)",null,null,null,"2000-2017",null,{"$f":"B9","v":0},"definisjon",null,null,"wxx_xxxx_lopenr_virksomhet",null,"på filene: orgbed/virk_id_ssb","$ARBMARK/oppdrag/filtilgang/s380/beredskapsfiler/wk48","regsysÅÅÅÅk4",null,null,"NAV","string","status","Arbeid og lønn","Norge","Virksomhet",null,"N/A"]
["Løpenummer juridisk enhet (foretak)",null,null,null,"2000-2017",null,0,"definisjon",null,null,"wxx_xxxx_lopenr_foretak",null,"på filene: orgfor/frtk_id_ssb","$ARBMARK/oppdrag/filtilgang/s380/beredskapsfiler/wk48","regsysÅÅÅÅk4",null,null,"NAV","string","status","Arbeid og lønn","Norge","Foretak",null,"N/A"]
["Status på arbeidsmarkedet i referanseuken",null,null,null,"2000-2017","microdata.no",0,"definisjon","kodeliste",null,"yrkstat","arb_arbmark_status",null,"$ARBMARK/oppdrag/filtilgang/s380/beredskapsfiler/wk48","regsysÅÅÅÅk4",null,null,"NAV","string","status","Arbeid og lønn","Norge","Person",null,"N/A"]
["Kilde for arbeidsmarkedsstatus i referanseuken",null,null,null,"2000-2014",null,0,null,"kodeliste",null,"kyrkstat",null,"kildevariabler utgår fra og med 2015","$ARBMARK/oppdrag/filtilgang/s380/beredskapsfiler/wk48","regsysÅÅÅÅk4",null,null,"SSB","string","status","Arbeid og lønn","Norge","Person",null,"N/A"]
["Type arbeidsforhold i a-meldingen",null,null,null,"2015-2017",null,null,null,"kodeliste",null,null,"arb_type",null,"$ARBMARK/oppdrag/filtilgang/s380/beredskapsfiler/wk48","regsysÅÅÅÅk4"]
["Arbeidsstedskommune",null,null,null,"2000-2017","microdata.no",0,"definisjon","kodeliste",null,"arbkomm","arb_arbkomm",null,"$ARBMARK/oppdrag/filtilgang/s380/beredskapsfiler/wk48","regsysÅÅÅÅk4",null,null,"NAV","string","status","Arbeid og lønn","Norge","Person",null,"N/A"]
["Kilde arbeidsstedskommune",null,null,null,"2000-2014",null,0,null,"kodeliste",null,"karbkomm",null,"kildevariabler utgår fra og med 2015","$ARBMARK/oppdrag/filtilgang/s380/beredskapsfiler/wk48","regsysÅÅÅÅk4",null,null,"SSB","string","status","Arbeid og lønn","Norge","Person",null,"N/A"]
["Forventet/avtalt arbeidstid, intervaller",null,null,null,"2000-2014","microdata.no",0,"definisjon","kodeliste",null,"arbtid",null,"arbeidstid intervall ikke beregnet i fila","$ARBMARK/oppdrag/filtilgang/s380/beredskapsfiler/wk48","regsysÅÅÅÅk4",null,null,"NAV","string","status","Arbeid og lønn","Norge","Person",null,"N/A"]
["Forventet/avtalt arbeidstid, eksakte timer",null,null,null,"2000-2017","microdata.no",0,"definisjon",null,null,"arbtim","arb_avtaltarbeidstid",null,"$ARBMARK/oppdrag/filtilgang/s380/beredskapsfiler/wk48","regsysÅÅÅÅk4",null,null,"NAV","number","status","Arbeid og lønn","Norge","Person",null,"N/A"]
["Kilde forventet/avtalt arbeidstid",null,null,null,"2000-2014",null,0,null,"kodeliste",null,"karbtim",null,"kildevariabler utgår fra og med 2015","$ARBMARK/oppdrag/filtilgang/s380/beredskapsfiler/wk48","regsysÅÅÅÅk4",null,null,"SSB","string","status","Arbeid og lønn","Norge","Person",null,"N/A"]
["Yrke. Publiseringskategorier av STYRK2008",null,null,null,"2009-2014","microdata.no",{"$f":"B19","v":0},"definisjon","kodeliste",null,"yrke_publ",null,null,"$ARBMARK/oppdrag/filtilgang/s380/beredskapsfiler/wk48","regsysÅÅÅÅk4",null,null,"NAV","string","status","Arbeid og lønn","Norge","Person",null,"N/A"]
["Yrkeskode innrapportert til Aa-registeret",null,null,null,"2003-2014",null,0,"definisjon","kodeliste",null,"yrk_kode",null,null,"$ARBMARK/oppdrag/filtilgang/s380/beredskapsfiler/wk48","regsysÅÅÅÅk4",null,null,"NAV","string","status","Arbeid og lønn","Norge","Person",null,"N/A"]
["Yrkeskode innrapportert til A-meldingen (STYRK98)",null,null,null,"2015-2017",null,{"$f":"B21","v":0},"definisjon","kodeliste",null,null,"arb_yrke","I hovedsak som yrk_kode men uten sære koder 001 mv. Kodeliste i KLASS.","$ARBMARK/oppdrag/filtilgang/s380/beredskapsfiler/wk48","regsysÅÅÅÅk4",null,null,"NAV","string","status","Arbeid og lønn","Norge","Person",null,"N/A"]
["Yrkeskode innrapportert til A-meldingen (STYRK98 omkodet til STYRK08)",null,null,null,"2015-2017",null,null,"definisjon","kodeliste",null,null,"arb_yrke_styrk08",null,"$ARBMARK/oppdrag/filtilgang/s380/beredskapsfiler/wk48","regsysÅÅÅÅk4"]
["Yrke. Imputert yrkeskode av STYRK1998",null,null,null,"2003-2010",null,0,"definisjon","kodeliste",null,"yrke_imp",null,"tom variabel fra 2011, ikke ta med ut etter 2010 (siste år med imputering)","$ARBMARK/oppdrag/filtilgang/s380/beredskapsfiler/wk48","regsysÅÅÅÅk4",null,null,"NAV","string","status","Arbeid og lønn","Norge","Person",null,"N/A"]
["Kilde imputert yrke STYRK1998",null,null,null,"2003-2010",null,0,null,"kodeliste",null,"kyrke_imp",null,"må følge med levering av yrke_imp, til og med årgang 2010","$ARBMARK/oppdrag/filtilgang/s380/beredskapsfiler/wk48","regsysÅÅÅÅk4",null,null,"SSB","string","status","Arbeid og lønn","Norge","Person",null,"N/A"]
["Næring til virksomheten, gjeldende standard",null,null,null,"2000-2017","microdata.no",0,"definisjon","kodeliste",null,"naring","virk_nace1_sn07",null,"$ARBMARK/oppdrag/filtilgang/s380/beredskapsfiler/wk48","regsysÅÅÅÅk4",null,null,"NAV","string","status","Arbeid og lønn","Norge","Virksomhet",null,"N/A"]
["Kilde næring",null,null,null,"2000-2014",null,0,null,"kodeliste",null,"knaring",null,"kildevariabler utgår fra og med 2015","$ARBMARK/oppdrag/filtilgang/s380/beredskapsfiler/wk48","regsysÅÅÅÅk4",null,null,"SSB","string","status","Arbeid og lønn","Norge","Virksomhet",null,"N/A"]
["Organisasjonsform, juridisk enhet",null,null,null,"2000-2017","microdata.no",0,"definisjon","kodeliste",null,"forg_frm","frtk_org_form",null,"$ARBMARK/oppdrag/filtilgang/s380/beredskapsfiler/wk48","regsysÅÅÅÅk4",null,null,"NAV","string","status","Arbeid og lønn","Norge","Foretak",null,"N/A"]
["Kilde organisasjonsnummer virksomhet (bedrift)",null,null,null,"2000-2014",null,0,null,"kodeliste",null,"korgbed",null,"kildevariabler utgår fra og med 2015","$ARBMARK/oppdrag/filtilgang/s380/beredskapsfiler/wk48","regsysÅÅÅÅk4",null,null,"SSB","string","status","Arbeid og lønn","Norge","Virksomhet",null,"N/A"]
["Kilde organisasjonsnummer juridisk enhet (foretak)",null,null,null,"2000-2014",null,0,null,"kodeliste",null,"korgfor",null,"kildevariabler utgår fra og med 2015","$ARBMARK/oppdrag/filtilgang/s380/beredskapsfiler/wk48","regsysÅÅÅÅk4",null,null,"SSB","string","status","Arbeid og lønn","Norge","Foretak",null,"N/A"]
["Institusjonell sektor for juridisk enhet (foretak). Standard 2006",null,null,null,"2000-2012","microdata.no",0,"definisjon","kodeliste",null,"sektor",null,"sektor standard 2006 på fil til og med 2012, ta med.","$ARBMARK/oppdrag/filtilgang/s380/beredskapsfiler/wk48","regsysÅÅÅÅk4",null,null,null,"string","status","Arbeid og lønn","Norge","Foretak",null,"N/A"]
["Institusjonell sektor for juridisk enhet (foretak). Standard 2012",null,null,null,"2011-2017","microdata.no",0,"definisjon","kodeliste",null,"sektor_2014","frtk_sektor_2014","sektor standard 2012. På fil fra og med 2011, ta med.","$ARBMARK/oppdrag/filtilgang/s380/beredskapsfiler/wk48","regsysÅÅÅÅk4",null,null,null,"string","status","Arbeid og lønn","Norge","Foretak",null,"N/A"]
["Kilde for institusjonelle sektor",null,null,null,"2000-2014",null,0,null,"kodeliste",null,"ksektor",null,"kildevariabler utgår fra og med 2015","$ARBMARK/oppdrag/filtilgang/s380/beredskapsfiler/wk48","regsysÅÅÅÅk4",null,null,"SSB","string","status","Arbeid og lønn","Norge","Foretak",null,"N/A"]
["Antall lønnstakere i virksomheten (bedriften)",null,null,null,"2000-2014",null,0,null,null,null,"ansatte_bedrift",null,"foreligger ikke på beredskapsfil for 2015","$ARBMARK/oppdrag/filtilgang/s380/beredskapsfiler/wk48","regsysÅÅÅÅk4",null,null,"NAV","number","status","Arbeid og lønn","Norge","Virksomhet",null,"N/A"]
["Tiltakskode hentet fra arbeidssøkerstatus (ARENA)",null,null,null,"2000-2017",null,0,"definisjon","kodeliste",null,"tiltak","pers_tiltak",null,"$ARBMARK/oppdrag/filtilgang/s380/beredskapsfiler/wk48","regsysÅÅÅÅk4",null,null,"NAV","string","status","Arbeid og lønn","Norge","Person",null,"N/A"]
[]
[null,null,null,null,null,null,{"$f":"IF(COUNTIF(G37,\"x\")>0,\"x\",\"0\")","v":"0"}]
["ANDRE TILGJENGELIGE VARIABLER",null,null,null,null,null,{"$f":"IF(COUNTIF(G38:G40,\"x\")>0,\"x\",\"0\")","v":"0"}]
["Alder pr. referansedato (pr. 31.12. før 2005)",null,null,null,"2000-2017",null,0,"definisjon",null,null,"alder","pers_alder",null,"$ARBMARK/oppdrag/filtilgang/s380/beredskapsfiler/wk48","regsysÅÅÅÅk4",null,null,"SSB","number","status","Arbeid og lønn","Norge","Person",null,"År"]
["Bostedskommune i referanseuken",null,null,null,"2000-2017",null,0,"definisjon","kodeliste",null,"bkomm","pers_kommnr",null,"$ARBMARK/oppdrag/filtilgang/s380/beredskapsfiler/wk48","regsysÅÅÅÅk4",null,null,"SSB","string","status","Arbeid og lønn","Norge","Person",null,"N/A"]
["Kjønn",null,null,null,"2000-2017",null,0,"definisjon","kodeliste",null,"kjonn","pers_kjoenn",null,"$ARBMARK/oppdrag/filtilgang/s380/beredskapsfiler/wk48","regsysÅÅÅÅk4",null,null,"SSB","string","status","Arbeid og lønn","Norge","Person",null,"N/A"]
[]
[null,null,null,null,null,null,{"$f":"IF(COUNTIF(G43,\"x\")>0,\"x\",\"0\")","v":"0"}]
["VARIABLER FRA SYSTEM FOR PERSONDATA (SFP)",null,null,null,null,null,{"$f":"IF(COUNTIF(G44:G117,\"x\")>0,\"x\",\"0\")","v":"0"}]
["Løpenummer person",null,null,null,"2008-2017",null,{"$f":"B44","v":0},"definisjon",null,null,"wxx_xxxx_lopenr_person",null,"fra 2015 ligger snr på fila (pers_id_ssb)",null,null,null,null,"SSB","string","status","Arbeid og lønn","Norge","Person",null,"N/A"]
["Løpenummer virksomhet (bedrift)",null,null,null,"2008-2017",null,0,"definisjon",null,null,"wxx_xxxx_lopenr_virksomhet",null,"på filene: orgbed/virk_id_ssb","$SFP/sfp9/wk48/","sfp9_tabfilÅÅÅÅ",null,null,"NAV","string","status","Arbeid og lønn","Norge","Virksomhet",null,"N/A"]
["Løpenummer juridisk enhet (foretak)",null,null,null,"2008-2017",null,0,"definisjon",null,null,"wxx_xxxx_lopenr_foretak",null,"på filene: orgfor/frtk_id_ssb","$SFP/sfp9/wk48/","sfp9_tabfilÅÅÅÅ",null,null,"NAV","string","status","Arbeid og lønn","Norge","Foretak",null,"N/A"]
["Status på arbeidsmarkedet i ref.uken",null,null,null,"2008-2017",null,0,"definisjon","kodeliste",null,"yrkstat","arb_arbmark_status",null,"$SFP/sfp9/wk48/","sfp9_tabfilÅÅÅÅ",null,null,"NAV","string","status","Arbeid og lønn","Norge","Person",null,"N/A"]
["Kilde for arb.markedsstatus i ref. uka (se også type_ekstrapers)",null,null,null,"2008-2014",null,0,null,"kodeliste",null,"kyrkstat",null,"kildevariabler utgår fra og med 2015","$SFP/sfp9/wk48/","sfp9_tabfilÅÅÅÅ",null,null,"SSB","string","status","Arbeid og lønn","Norge","Person",null,"N/A"]
["Type person etter alder og registerstatus",null,null,null,"2008-2017",null,0,null,"kodeliste",null,"persontype","pers_persontype",null,"$SFP/sfp9/wk48/","sfp9_tabfilÅÅÅÅ",null,null,"SSB","string","status","Arbeid og lønn","Norge","Person",null,"N/A"]
["Type ekstrapersoner ikkebosatte",null,null,null,"2008-2014",null,0,null,"kodeliste",null,"type_ekstrapers",null,null,"$SFP/sfp9/wk48/","sfp9_tabfilÅÅÅÅ",null,null,"SSB","string","status","Arbeid og lønn","Norge","Person",null,"N/A"]
["Type arbeidsforhold",null,null,null,"2008-2017",null,0,null,"kodeliste",null,"typ_arb","arb_type",null,"$SFP/sfp9/wk48/","sfp9_tabfilÅÅÅÅ",null,null,"NAV","string","status","Arbeid og lønn","Norge","Person/Jobb?",null,"N/A"]
["Personens registerstatus i Folkeregisteret",null,null,null,"2008-2017",null,0,null,"kodeliste",null,"reg_stat","pers_reg_stat",null,"$SFP/sfp9/wk48/","sfp9_tabfilÅÅÅÅ",null,null,"SKD","string","status","Arbeid og lønn","Norge","Person",null,"N/A"]
["SFP-status i forhold til arb.markedet, utdanning og offentlige ytelser",null,null,null,"2008-2017",null,0,null,"kodeliste",null,"status8","pers_status8",null,"$SFP/sfp9/wk48/","sfp9_tabfilÅÅÅÅ",null,null,"NAV","string","status","Arbeid og lønn","Norge","Person",null,"N/A"]
["Rekkefølgenr. del 1 av statuskoden",null,null,null,"2008-2017",null,0,null,null,null,"del1_t1","pers_del1_t1",null,"$SFP/sfp9/wk48/","sfp9_tabfilÅÅÅÅ",null,null,"SSB","string","status","Arbeid og lønn","Norge","Person",null,"N/A"]
["Rekkefølgenr. del 2 av statuskoden",null,null,null,"2008-2017",null,0,null,null,null,"del2_t1","pers_del1_t1",null,"$SFP/sfp9/wk48/","sfp9_tabfilÅÅÅÅ",null,null,"SSB","string","status","Arbeid og lønn","Norge","Person",null,"N/A"]
["Arbeidsstedskommune",null,null,null,"2008-2017",null,0,"definisjon","kodeliste",null,"arbkomm","arb_arbkomm",null,"$SFP/sfp9/wk48/","sfp9_tabfilÅÅÅÅ",null,null,"NAV","string","status","Arbeid og lønn","Norge","Person",null,"N/A"]
["Kilde arbeidsstedskommune",null,null,null,"2008-2014",null,0,null,"kodeliste",null,"karbkomm",null,"kildevariabler utgår fra og med 2015","$SFP/sfp9/wk48/","sfp9_tabfilÅÅÅÅ",null,null,"SSB","string","status","Arbeid og lønn","Norge","Person",null,"N/A"]
["Forventet/avtalt arbeidstid, intervaller",null,null,null,"2008-2014",null,0,"definisjon","kodeliste",null,"arbtid",null,"foreligger ikke, fra 2015","$SFP/sfp9/wk48/","sfp9_tabfilÅÅÅÅ",null,null,"NAV","string","status","Arbeid og lønn","Norge","Person",null,"N/A"]
["Forventet/avtalt arbeidstid, eksakte timer",null,null,null,"2008-2017",null,0,"definisjon",null,null,"arbtim","arb_avtaltarbeidstid",null,"$SFP/sfp9/wk48/","sfp9_tabfilÅÅÅÅ",null,null,"NAV","number","status","Arbeid og lønn","Norge","Person",null,"N/A"]
["Sum forventede/avtalte arbeidstimer pr.uke inkl.bijobber",null,null,null,"2008-2014",null,0,null,null,null,"sum_arbeidstimer","pers_sum_avtaltarbtid",null,"$SFP/sfp9/wk48/","sfp9_tabfilÅÅÅÅ",null,null,"NAV","number","status","Arbeid og lønn","Norge","Person",null,"N/A"]
["Kilde forventet/avtalt arbeidstid",null,null,null,"2008-2014",null,0,null,"kodeliste",null,"karbtim",null,"kildevariabler utgår fra og med 2015","$SFP/sfp9/wk48/","sfp9_tabfilÅÅÅÅ",null,null,"SSB","string","status","Arbeid og lønn","Norge","Person",null,"N/A"]
["Yrkeskode innrapportert til Aa-registeret",null,null,null,"2008-2017",null,0,"definisjon","kodeliste",null,"yrk_kode","arb_yrke",null,"$SFP/sfp9/wk48/","sfp9_tabfilÅÅÅÅ",null,null,"NAV","string","status","Arbeid og lønn","Norge","Person",null,"N/A"]
["Yrke. Imputert yrkeskode av STYRK1998",null,null,null,"2008-2010",null,0,"definisjon","kodeliste",null,"yrke_imp",null,null,"$SFP/sfp9/wk48/","sfp9_tabfilÅÅÅÅ",null,null,"NAV","string","status","Arbeid og lønn","Norge","Person",null,"N/A"]
["Kilde imputert yrke STYRK1998",null,null,null,"2008-2010",null,0,null,"kodeliste",null,"kyrke_imp",null,"kildevariabler utgår fra og med 2015","$SFP/sfp9/wk48/","sfp9_tabfilÅÅÅÅ",null,null,"SSB","string","status","Arbeid og lønn","Norge","Person",null,"N/A"]
["Næring til virksomheten, SN 2002.",null,null,null,"2008-2012",null,0,"definisjon","kodeliste",null,"naring",null,"Nace SN02 med på fil frem til 2012, ta med - overlapper.","$SFP/sfp9/wk48/","sfp9_tabfilÅÅÅÅ",null,null,"NAV","string","status","Arbeid og lønn","Norge","Virksomhet",null,"N/A"]
["Næring til virksomheten, SN2007.",null,null,null,"2008-2017",null,0,"definisjon","kodeliste",null,"naring","virk_nace1_sn07","Nace SN07 med på fil alle årganger, ta med - overlapper.","$SFP/sfp9/wk48/","sfp9_tabfilÅÅÅÅ",null,null,"NAV","string","status","Arbeid og lønn","Norge","Virksomhet",null,"N/A"]
["Kilde næring",null,null,null,"2008-2014",null,0,null,"kodeliste",null,"knaring",null,"kildevariabler utgår fra og med 2015","$SFP/sfp9/wk48/","sfp9_tabfilÅÅÅÅ",null,null,"SSB","string","status","Arbeid og lønn","Norge","Virksomhet",null,"N/A"]
["Foretakets institusjonelle sektor. Standard 2006",null,null,null,"2008-2012",null,0,"definisjon","kodeliste",null,"sektor",null,"Sektor 2006 med på fil frem til 2012, ta med - overlapper.","$SFP/sfp9/wk48/","sfp9_tabfilÅÅÅÅ",null,null,"SSB","string","status","Arbeid og lønn","Norge","Foretak",null,"N/A"]
["Foretakets institusjonelle sektor. Standard 2012",null,null,null,"2011-2017",null,0,"definisjon","kodeliste",null,"sektor_2014","frtk_sektor_2014","Sektor standard 2012. På fil fra og med 2011, ta med.","$SFP/sfp9/wk48/","sfp9_tabfilÅÅÅÅ",null,null,"SSB","string","status","Arbeid og lønn","Norge","Foretak",null,"N/A"]
["Kilde organisasjonsnummer virksomhet (bedrift)",null,null,null,"2008-2014",null,0,null,"kodeliste",null,"korgbed",null,"kildevariabler utgår fra og med 2015","$SFP/sfp9/wk48/","sfp9_tabfilÅÅÅÅ",null,null,"SSB","string","status","Arbeid og lønn","Norge","Virksomhet",null,"N/A"]
["Kilde organisasjonsnummer juridisk enhet (foretak)",null,null,null,"2008-2014",null,0,null,"kodeliste",null,"korgfor",null,"kildevariabler utgår fra og med 2015","$SFP/sfp9/wk48/","sfp9_tabfilÅÅÅÅ",null,null,"SSB","string","status","Arbeid og lønn","Norge","Foretak",null,"N/A"]
["Organisasjonsform juridisk enhet (foretak)",null,null,null,"2008-2017",null,0,"definisjon","kodeliste",null,"forg_frm","frtk_org_form",null,"$SFP/sfp9/wk48/","sfp9_tabfilÅÅÅÅ",null,null,"SSB","string","status","Arbeid og lønn","Norge","Foretak",null,"N/A"]
["Kilde for institusjonelle sektor",null,null,null,"2008-2014",null,0,null,"kodeliste",null,"ksektor",null,"kildevariabler utgår fra og med 2015","$SFP/sfp9/wk48/","sfp9_tabfilÅÅÅÅ",null,null,"SSB","string","status","Arbeid og lønn","Norge","Foretak",null,"N/A"]
["Bedriftens registerenhetstype",null,null,null,"2008-2017",null,0,null,"kodeliste",null,"regtype_bed","virk_regtype",null,"$SFP/sfp9/wk48/","sfp9_tabfilÅÅÅÅ",null,null,"SSB","string","status","Arbeid og lønn","Norge","Virksomhet",null,"N/A"]
["Foretakets registerenhetstype",null,null,null,"2008-2017",null,0,null,"kodeliste",null,"regtype_for","frtk_regtype",null,"$SFP/sfp9/wk48/","sfp9_tabfilÅÅÅÅ",null,null,"SSB","string","status","Arbeid og lønn","Norge","Foretak",null,"N/A"]
["Type arbeidstaker i Aa-registeret, M=maritim",null,null,null,"2008-2014",null,0,"definisjon","kodeliste",null,"mar_arb",null,null,"$SFP/sfp9/wk48/","sfp9_tabfilÅÅÅÅ",null,null,"NAV","string","status","Arbeid og lønn","Norge","Person",null,"N/A"]
["Tiltakskode hentet fra arbeidssøkerstatus (ARENA)",null,null,null,"2008-2017",null,0,"definisjon","kodeliste",null,"tiltak","pers_tiltak",null,"$SFP/sfp9/wk48/","sfp9_tabfilÅÅÅÅ",null,null,"NAV","string","status","Arbeid og lønn","Norge","Person",null,"N/A"]
["Arbeidssøkerstatus, fingruppe (ARENA)",null,null,null,"2008-2017",null,0,null,"kodeliste",null,"as_fin","pers_as_f",null,"$SFP/sfp9/wk48/","sfp9_tabfilÅÅÅÅ",null,null,"NAV","string","status","Arbeid og lønn","Norge","Person",null,"N/A"]
["Arbeidssøkerstatus (ARENA)",null,null,null,"2008-2017",null,0,"definisjon","kodeliste",null,"as_stat","pers_as_stat",null,"$SFP/sfp9/wk48/","sfp9_tabfilÅÅÅÅ",null,null,"NAV","string","status","Arbeid og lønn","Norge","Person",null,"N/A"]
["Ytelsesstatus (rettighet) (ARENA)",null,null,null,"2008-2017",null,0,null,"kodeliste",null,"as_ytelse","pers_as_ytelse",null,"$SFP/sfp9/wk48/","sfp9_tabfilÅÅÅÅ",null,null,"NAV","string","status","Arbeid og lønn","Norge","Person",null,"N/A"]
["Andel AFP",null,null,null,"2008-2017",null,0,null,"kodeliste",null,"grad_afp","pers_grad_afp",null,"$SFP/sfp9/wk48/","sfp9_tabfilÅÅÅÅ",null,null,"NAV","string","status","Arbeid og lønn","Norge","Person",null,"N/A"]
["Andel alderspensjon",null,null,null,"2008-2017",null,0,null,null,null,"grad_aldersp","pers_grad_aldersp",null,"$SFP/sfp9/wk48/","sfp9_tabfilÅÅÅÅ",null,null,"NAV","string","status","Arbeid og lønn","Norge","Person",null,"N/A"]
["Sykepengegrad i prosent",null,null,null,"2008-2017",null,0,null,null,null,"spgrad","pers_spgrad",null,"$SFP/sfp9/wk48/","sfp9_tabfilÅÅÅÅ",null,null,"NAV","string","status","Arbeid og lønn","Norge","Person",null,"N/A"]
["Uføregrad for attføringsforholdet, ordning avviklet etter 2009.",null,null,null,"2008-2009",null,0,"definisjon",null,null,"uforgrad_attf",null,null,"$SFP/sfp9/wk48/","sfp9_tabfilÅÅÅÅ",null,null,"NAV","string","status","Arbeid og lønn","Norge","Person",null,"N/A"]
["Uføregrad foreløpig uføre, ordning avviklet 1.1.2012.",null,null,null,"2008-2011",null,0,"definisjon",null,null,"uforgrad_fuf",null,null,"$SFP/sfp9/wk48/","sfp9_tabfilÅÅÅÅ",null,null,"NAV","string","status","Arbeid og lønn","Norge","Person",null,"N/A"]
["Uføregrad tidsbegrensa uføre, ordning avviklet etter 2009.",null,null,null,"2008-2009",null,0,"definisjon",null,null,"uforgrad_tu",null,null,"$SFP/sfp9/wk48/","sfp9_tabfilÅÅÅÅ",null,null,"NAV","string","status","Arbeid og lønn","Norge","Person",null,"N/A"]
["Uføregrad for varig uføre",null,null,null,"2008-2017",null,0,"definisjon",null,null,"uforgrad_vuf","pers_uforgrad_vuf",null,"$SFP/sfp9/wk48/","sfp9_tabfilÅÅÅÅ",null,null,"NAV","string","status","Arbeid og lønn","Norge","Person",null,"N/A"]
["AFP-gruppering",null,null,null,"2011-2014",null,0,null,"kodeliste",null,"afp_gruppering","pers_afp_gruppering",null,"$SFP/sfp9/wk48/","sfp9_tabfilÅÅÅÅ",null,null,"NAV","string","status","Arbeid og lønn","Norge","Person",null,"N/A"]
["Fulltellingsvariabler for status, se dokumentasjon s. 13ff, verdi = '1' betyr aktiv på ordning eller ytelse.",null,null,null,null,null,null,"dokumentasjon"]
["AFP-pensjon (offentlig og/eller privat sektor)",null,null,null,"2008-2017",null,0,"definisjon",null,null,"akt_afp","akt_afp",null,"$SFP/sfp9/wk48/","sfp9_tabfilÅÅÅÅ",null,null,"NAV","string","status","Arbeid og lønn","Norge","Person",null,"N/A"]
["Alderspensjon",null,null,null,"2008-2017",null,0,"definisjon",null,null,"akt_aldersp","akt_aldersp",null,"$SFP/sfp9/wk48/","sfp9_tabfilÅÅÅÅ",null,null,"NAV","string","status","Arbeid og lønn","Norge","Person",null,"N/A"]
["Annen attføring (rehabilitering), ordninger avviklet etter 2009.",null,null,null,"2008-2009",null,0,null,null,null,"akt_annatf",null,null,"$SFP/sfp9/wk48/","sfp9_tabfilÅÅÅÅ",null,null,"NAV","string","status","Arbeid og lønn","Norge","Person",null,"N/A"]
["Pensjoner fra andre enn NAV/Folketrygden",null,null,null,"2008-2017",null,0,null,null,null,"akt_annenp","akt_annenp",null,"$SFP/sfp9/wk48/","sfp9_tabfilÅÅÅÅ",null,null,"SSB","string","status","Arbeid og lønn","Norge","Person",null,"N/A"]
["Arbeidsavklaringspenger (attføring før 2010)",null,null,null,"2008-2017",null,0,"definisjon",null,null,"akt_arbap","akt_arbap",null,"$SFP/sfp9/wk48/","sfp9_tabfilÅÅÅÅ",null,null,"NAV","string","status","Arbeid og lønn","Norge","Person",null,"N/A"]
["Attføringspenger, ordning avviklet etter 2009.",null,null,null,"2008-2009",null,0,null,null,null,"akt_attfp",null,null,"$SFP/sfp9/wk48/","sfp9_tabfilÅÅÅÅ",null,null,"NAV","string","status","Arbeid og lønn","Norge","Person",null,"N/A"]
["Dagpenger",null,null,null,"2008-2017",null,0,"definisjon",null,null,"akt_dagp","akt_dagp",null,"$SFP/sfp9/wk48/","sfp9_tabfilÅÅÅÅ",null,null,"NAV","string","status","Arbeid og lønn","Norge","Person",null,"N/A"]
["Enslig forsørgerstønad",null,null,null,"2008-2017",null,0,null,null,null,"akt_ensligf","akt_ensligf",null,"$SFP/sfp9/wk48/","sfp9_tabfilÅÅÅÅ",null,null,"NAV","string","status","Arbeid og lønn","Norge","Person",null,"N/A"]
["Etterlattepensjon",null,null,null,"2008-2017",null,0,null,null,null,"akt_etterl","akt_etterl",null,"$SFP/sfp9/wk48/","sfp9_tabfilÅÅÅÅ",null,null,"NAV","string","status","Arbeid og lønn","Norge","Person",null,"N/A"]
["Foreløpig uførestønad, ordning avviklet 1.1.2012.",null,null,null,"2008-2011",null,0,null,null,null,"akt_foreluf",null,null,"$SFP/sfp9/wk48/","sfp9_tabfilÅÅÅÅ",null,null,"NAV","string","status","Arbeid og lønn","Norge","Person",null,"N/A"]
["Individstønad",null,null,null,"2008-2017",null,0,null,null,null,"akt_indst","akt_indst",null,"$SFP/sfp9/wk48/","sfp9_tabfilÅÅÅÅ",null,null,"NAV","string","status","Arbeid og lønn","Norge","Person",null,"N/A"]
["Introduksjonsstønad",null,null,null,"2008-2017",null,0,null,null,null,"akt_intro","akt_intro",null,"$SFP/sfp9/wk48/","sfp9_tabfilÅÅÅÅ",null,null,"NAV","string","status","Arbeid og lønn","Norge","Person",null,"N/A"]
["Kontantstøtte",null,null,null,"2008-2017",null,0,"definisjon",null,null,"akt_kontant","akt_kontant",null,"$SFP/sfp9/wk48/","sfp9_tabfilÅÅÅÅ",null,null,"NAV","string","status","Arbeid og lønn","Norge","Person",null,"N/A"]
["Registrert helt arbeidsledig",null,null,null,"2008-2017",null,0,"definisjon",null,null,"akt_ledig","akt_ledig",null,"$SFP/sfp9/wk48/","sfp9_tabfilÅÅÅÅ",null,null,"NAV","string","status","Arbeid og lønn","Norge","Person",null,"N/A"]
["Lønnstaker deltid",null,null,null,"2008-2017",null,0,"definisjon",null,null,"akt_lodeltid","akt_lodeltid",null,"$SFP/sfp9/wk48/","sfp9_tabfilÅÅÅÅ",null,null,"NAV","string","status","Arbeid og lønn","Norge","Person",null,"N/A"]
["Lønnstaker heltid",null,null,null,"2008-2017",null,{"$f":"B105","v":0},"definisjon",null,null,"akt_loheltid","akt_loheltid",null,"$SFP/sfp9/wk48/","sfp9_tabfilÅÅÅÅ",null,null,"NAV","string","status","Arbeid og lønn","Norge","Person",null,"N/A"]
["Lønnstaker basert kun på LTO",null,null,null,"2008-2014",null,0,"definisjon",null,null,"akt_lolto",null,null,"$SFP/sfp9/wk48/","sfp9_tabfilÅÅÅÅ",null,null,"SSB","string","status","Arbeid og lønn","Norge","Person",null,"N/A"]
["Nedsatt arbeidsevne, ikke på tiltak",null,null,null,"2008-2017",null,0,null,null,null,"akt_nedsikt","akt_nedsikt",null,"$SFP/sfp9/wk48/","sfp9_tabfilÅÅÅÅ",null,null,"NAV","string","status","Arbeid og lønn","Norge","Person",null,"N/A"]
["Nedsatt arbeidsevne, på tiltak",null,null,null,"2008-2017",null,0,null,null,null,"akt_nedst","akt_nedst",null,"$SFP/sfp9/wk48/","sfp9_tabfilÅÅÅÅ",null,null,"NAV","string","status","Arbeid og lønn","Norge","Person",null,"N/A"]
["Frilansere, oppdragstakere mv.",null,null,null,"2015-2017",null,0,null,null,null,null,"akt_oppdrag"]
["Ordinære tiltak (ikke nedsatt arbeidsevne)",null,null,null,"2008-2017",null,0,null,null,null,"akt_ordtilt","akt_ordtilt",null,"$SFP/sfp9/wk48/","sfp9_tabfilÅÅÅÅ",null,null,"NAV","string","status","Arbeid og lønn","Norge","Person",null,"N/A"]
["Ordinær utdanning",null,null,null,"2008-2017",null,0,null,null,null,"akt_ordutd","akt_ordutd",null,"$SFP/sfp9/wk48/","sfp9_tabfilÅÅÅÅ",null,null,"SSB","string","status","Arbeid og lønn","Norge","Person",null,"N/A"]
["Selvstendig næringsdrivende",null,null,null,"2008-2017",null,0,null,null,null,"akt_selvst","akt_selvst",null,"$SFP/sfp9/wk48/","sfp9_tabfilÅÅÅÅ",null,null,"SSB","string","status","Arbeid og lønn","Norge","Person",null,"N/A"]
["Sosialhjelp",null,null,null,"2008-2017",null,0,"definisjon",null,null,"akt_soshj","akt_soshj",null,"$SFP/sfp9/wk48/","sfp9_tabfilÅÅÅÅ",null,null,"NAV","string","status","Arbeid og lønn","Norge","Person",null,"N/A"]
["Supplerende stønad",null,null,null,"2008-2017",null,0,null,null,null,"akt_suppl","akt_suppl",null,"$SFP/sfp9/wk48/","sfp9_tabfilÅÅÅÅ",null,null,"NAV","string","status","Arbeid og lønn","Norge","Person",null,"N/A"]
["Sykepenger fra folketrygden",null,null,null,"2008-2017",null,0,null,null,null,"akt_sykep","akt_sykep",null,"$SFP/sfp9/wk48/","sfp9_tabfilÅÅÅÅ",null,null,"NAV","string","status","Arbeid og lønn","Norge","Person",null,"N/A"]
["Tidsbegrensa uførestønad, ordning avviklet etter 2009.",null,null,null,"2008-2009",null,0,null,null,null,"akt_tidsbuf",null,null,"$SFP/sfp9/wk48/","sfp9_tabfilÅÅÅÅ",null,null,"NAV","string","status","Arbeid og lønn","Norge","Person",null,"N/A"]
["Varig uførestønad",null,null,null,"2008-2017",null,0,null,null,null,"akt_variguf","akt_variguf",null,"$SFP/sfp9/wk48/","sfp9_tabfilÅÅÅÅ",null,null,"NAV","string","status","Arbeid og lønn","Norge","Person",null,"N/A"]
[]
[null,"Gå tilbake til informasjonssiden"]
[]
[]
[{"$f":"'Variabelliste - informasjon'!A43","v":"Sist oppdatert 30. april 2019"},null,null,null,null,null,null,null,null,null,null,{"$f":"'Variabelliste - informasjon'!E43","v":"Statistisk sentralbyrå"}]

{"sheet":"kodeliste pers_as_stat","index":2,"n_rows":412,"n_cols":4,"rows_kept":412,"cut":false,"hidden":false,"merged":[[2,0,2,1],[1,0,1,1],[3,0,3,1],[4,3,7,3]]}
["odt/27.2.2017"]
[]
["Fra \"Kodelister for arbeidssøkerfiler fra NAV. Koder benyttet siste 23 måneder. Pr 05.02.17\""]
[]
["as_stat =",null,null,"Personer med \"UKJENT\" er i hovedsak personer med arbeidsmarkedstatskode \"IKKESERV\", disse er ikke med i offisiell statistikk fra NAV og skal ikke benyttes til statistikk."]
["Arbeidssøker-, aktivitet- og retttighetsstatuskode","Arbeidssøker-, aktivitet- og retttighetsstatus"]
["------","UKJENT"]
["ANABISTAP","Arbeid med bistand (AB), Arbeidsavklaringspenger"]
["ANABISTID","Arbeid med Bistand (AB), Ingen livsoppholdsytelse i Arena"]
["ANABISTIS","Arbeid med Bistand (AB), Tiltakspenger"]
["ANAMBF2ID","Kvalifisering i arbeidsmarkedsbedrift, Ingen livsoppholdsytelse i Arena"]
["ANAMOAP","Arbeidsmarkedsopplæring (AMO), Arbeidsavklaringspenger"]
["ANAMODP","Arbeidsmarkedsopplæring (AMO), Dagpenger"]
["ANAMOEAP","Arbeidsmarkedsopplæring (AMO) enkeltplass, Arbeidsavklaringspenger"]
["ANAMOEDP","Arbeidsmarkedsopplæring (AMO) enkeltplass, Dagpenger"]
["ANAMOEID","Arbeidsmarkedsopplæring (AMO) enkeltplass, Ingen livsoppholdsytelse i Arena"]
["ANAMOEIS","Arbeidsmarkedsopplæring (AMO) enkeltplass, Tiltakspenger"]
["ANAMOID","Arbeidsmarkedsopplæring (AMO), Ingen livsoppholdsytelse i Arena"]
["ANAMOIS","Arbeidsmarkedsopplæring (AMO), Tiltakspenger"]
["ANANDREAP","Andre som mottar service, Arbeidsavklaringspenger"]
["ANANDREDP","Andre som mottar service, Dagpenger"]
["ANANDREID","Andre som mottar service, Ikke dagpenger"]
["ANANDREIS","Andre som mottar service, Tiltakspenger"]
["ANARBDOGNSMID","Arbeidsrettet rehabilitering (døgn) - sykmeldt arbeidstaker, Ingen livsoppholdsytelse i Arena"]
["ANARBRDAGSMAP","Arbeidsrettet rehabilitering (dag) - sykmeldt arbeidstaker, Arbeidsavklaringspenger"]
["ANARBRDAGSMDP","Arbeidsrettet rehabilitering (dag) - sykmeldt arbeidstaker, Dagpenger"]
["ANARBRDAGSMID","Arbeidsrettet rehabilitering (dag) - sykmeldt arbeidstaker, Ingen livsoppholdsytelse i Arena"]
["ANARBRDAGSMIS","Arbeidsrettet rehabilitering (dag) - sykmeldt arbeidstaker, Tiltakspenger"]
["ANARBRRDOGNID","Arbeidsrettet rehabilitering (døgn), Ingen livsoppholdsytelse i Arena"]
["ANARBRRHDAGAP","Arbeidsrettet rehabilitering (dag), Arbeidsavklaringspenger"]
["ANARBRRHDAGDP","Arbeidsrettet rehabilitering (dag), Dagpenger"]
["ANARBRRHDAGID","Arbeidsrettet rehabilitering (dag), Ingen livsoppholdsytelse i Arena"]
["ANARBRRHDAGIS","Arbeidsrettet rehabilitering (dag), Tiltakspenger"]
["ANARBTRENAP","Arbeidstrening, Arbeidsavklaringspenger"]
["ANARBTRENDP","Arbeidstrening, Dagpenger"]
["ANARBTRENID","Arbeidstrening, Ingen livsoppholdsytelse i Arena"]
["ANARBTRENIS","Arbeidstrening, Tiltakspenger"]
["ANAVKLARAGAP","Avklaring, Arbeidsavklaringspenger"]
["ANAVKLARAGDP","Avklaring, Dagpenger"]
["ANAVKLARAGID","Avklaring, Ingen livsoppholdsytelse i Arena"]
["ANAVKLARAGIS","Avklaring, Tiltakspenger"]
["ANAVKLARSPAP","Avklaring - sykmeldt arbeidstaker, Arbeidsavklaringspenger"]
["ANAVKLARSPDP","Avklaring - sykmeldt arbeidstaker, Dagpenger"]
["ANAVKLARSPID","Avklaring - sykmeldt arbeidstaker, Ingen livsoppholdsytelse i Arena"]
["ANAVKLARSPIS","Avklaring - sykmeldt arbeidstaker, Tiltakspenger"]
["ANAVKLARSVAP","Avklaring i skjermet virksomhet, Arbeidsavklaringspenger"]
["ANAVKLARSVID","Avklaring i skjermet virksomhet, Ingen livsoppholdsytelse i Arena"]
["ANAVKLARSVIS","Avklaring i skjermet virksomhet, Tiltakspenger"]
["ANETABAP","Egenetablering, Arbeidsavklaringspenger"]
["ANETABID","Egenetablering, Ingen livsoppholdsytelse i Arena"]
["ANFUNKSJASSAP","Funksjonsassistanse, Arbeidsavklaringspenger"]
["ANFUNKSJASSID","Funksjonsassistanse, Ingen livsoppholdsytelse i Arena"]
["ANINDOPPFAGAP","Oppfølging, Arbeidsavklaringspenger"]
["ANINDOPPFAGDP","Oppfølging, Dagpenger"]
["ANINDOPPFAGID","Oppfølging, Ingen livsoppholdsytelse i Arena"]
["ANINDOPPFAGIS","Oppfølging, Tiltakspenger"]
["ANINDOPPFSPAP","Oppfølging - sykmeldt arbeidstaker, Arbeidsavklaringspenger"]
["ANINDOPPFSPDP","Oppfølging - sykmeldt arbeidstaker, Dagpenger"]
["ANINDOPPFSPID","Oppfølging - sykmeldt arbeidstaker, Ingen livsoppholdsytelse i Arena"]
["ANINDOPPFSPIS","Oppfølging - sykmeldt arbeidstaker, Tiltakspenger"]
["ANINKLUTILSID","Inkluderingstilskudd, Ingen livsoppholdsytelse i Arena"]
["ANJOBBKAP","Jobbklubb, Arbeidsavklaringspenger"]
["ANJOBBKDP","Jobbklubb, Dagpenger"]
["ANJOBBKID","Jobbklubb, Ingen livsoppholdsytelse i Arena"]
["ANJOBBKIS","Jobbklubb, Tiltakspenger"]
["ANLONNTILAP","Tidsbegrenset lønnstilskudd, Arbeidsavklaringspenger"]
["ANLONNTILDP","Tidsbegrenset lønnstilskudd, Dagpenger"]
["ANLONNTILID","Tidsbegrenset lønnstilskudd, Ingen livsoppholdsytelse i Arena"]
["ANMENTORAP","Mentor, Arbeidsavklaringspenger"]
["ANMENTORID","Mentor, Ingen livsoppholdsytelse i Arena"]
["ANMIDLONTILAP","Midlertidig lønnstilskudd, Arbeidsavklaringspenger"]
["ANMIDLONTILDP","Midlertidig lønnstilskudd, Dagpenger"]
["ANMIDLONTILID","Midlertidig lønnstilskudd, Ingen livsoppholdsytelse i Arena"]
["ANMIDLONTILIS","Midlertidig lønnstilskudd, Tiltakspenger"]
["ANNETTAMOID","Nettbasert arbeidsmarkedsopplæring (AMO), Ingen livsoppholdsytelse i Arena"]
["ANOPPFIAP","Helserelatert arbeidsrettet oppfølging i NAV, Arbeidsavklaringspenger"]
["ANOPPFIDP","Helserelatert arbeidsrettet oppfølging i NAV, Dagpenger"]
["ANOPPFIID","Helserelatert arbeidsrettet oppfølging i NAV, Ikke dagpenger"]
["ANOPPFIIS","Helserelatert arbeidsrettet oppfølging i NAV, Tiltakspenger"]
["ANOPPLT2AARID","2-årig opplæringstiltak, Ingen livsoppholdsytelse i Arena"]
["ANOPPLT2AARIS","2-årig opplæringstiltak, Tiltakspenger"]
["ANPRAKSKJERMAP","Arbeidspraksis i skjermet virksomhet, Arbeidsavklaringspenger"]
["ANPRAKSKJERMDP","Arbeidspraksis i skjermet virksomhet, Dagpenger"]
["ANPRAKSKJERMID","Arbeidspraksis i skjermet virksomhet, Ingen livsoppholdsytelse i Arena"]
["ANPRAKSKJERMIS","Arbeidspraksis i skjermet virksomhet, Tiltakspenger"]
["ANPRAKSORDAP","Arbeidspraksis i ordinær virksomhet, Arbeidsavklaringspenger"]
["ANPRAKSORDDP","Arbeidspraksis i ordinær virksomhet, Dagpenger"]
["ANPRAKSORDID","Arbeidspraksis i ordinær virksomhet, Ingen livsoppholdsytelse i Arena"]
["ANPRAKSORDIS","Arbeidspraksis i ordinær virksomhet, Tiltakspenger"]
["ANTILPERBEDID","Tilretteleggingstilskudd for arbeidssøker, Ingen livsoppholdsytelse i Arena"]
["ANTILRTILSKAP","Tilrettelegging, Arbeidsavklaringspenger"]
["ANTILRTILSKID","Tilrettelegging, Ingen livsoppholdsytelse i Arena"]
["ANUTBHLETTPSAP","Utredning/behandling lettere psykiske lidelser, Arbeidsavklaringspenger"]
["ANUTBHLETTPSDP","Utredning/behandling lettere psykiske lidelser, Dagpenger"]
["ANUTBHLETTPSID","Utredning/behandling lettere psykiske lidelser, Ingen livsoppholdsytelse i Arena"]
["ANUTBHSAMLIAP","Utredning/behandling sammensatte lidelser, Arbeidsavklaringspenger"]
["ANUTBHSAMLIID","Utredning/behandling sammensatte lidelser, Ingen livsoppholdsytelse i Arena"]
["ANUTDYRKAP","Utdanning, Arbeidsavklaringspenger"]
["ANUTDYRKID","Utdanning, Ingen livsoppholdsytelse i Arena"]
["ANUTDYRKIS","Utdanning, Tiltakspenger"]
["ANUTVAOONAVAP","Utvidet avklaring og oppfølging i NAV, Arbeidsavklaringspenger"]
["ANUTVAOONAVDP","Utvidet avklaring og oppfølging i NAV, Dagpenger"]
["ANUTVAOONAVDP","Utvidet oppfølging i NAV, Dagpenger"]
["ANUTVAOONAVID","Utvidet avklaring og oppfølging i NAV, Ingen livsoppholdsytelse i Arena"]
["ANUTVAOONAVID","Utvidet oppfølging i NAV, Ingen livsoppholdsytelse i Arena"]
["ANUTVAOONAVIS","Utvidet avklaring og oppfølging i NAV, Tiltakspenger"]
["ANUTVAOONAVIS","Utvidet oppfølging i NAV, Tiltakspenger"]
["ANVURDIAP","Sykmeldt, oppfølging på arbeidsplassen, Arbeidsavklaringspenger"]
["ANVURDIDP","Sykmeldt, oppfølging på arbeidsplassen, Dagpenger"]
["ANVURDIID","Sykmeldt, oppfølging på arbeidsplassen, Ikke dagpenger"]
["ANVURDIIS","Sykmeldt, oppfølging på arbeidsplassen, Tiltakspenger"]
["ANVURDUAP","Sykmeldt uten arbeidsgiver, Arbeidsavklaringspenger"]
["ANVURDUDP","Sykmeldt uten arbeidsgiver, Dagpenger"]
["ANVURDUID","Sykmeldt uten arbeidsgiver, Ikke dagpenger"]
["DSIPAP","Delvis ledige, ikke permitterte, Arbeidsavklaringspenger"]
["DSIPDP","Delvis ledige, ikke permitterte, dagpenger"]
["DSIPID","Delvis ledige, ikke permitterte, Ingen livsoppholdsytelse i Arena"]
["DSIPIS","Delvis ledige, ikke permitterte, Tiltakspenger"]
["DSPEDP","Delvis ledige, permitterte, dagpenger"]
["DSPFDP","Delvis ledige, permitterte fra fiskeind., dagpenger"]
["FSABISTAP","Arbeid med bistand (AB), Arbeidsavklaringspenger"]
["FSABISTDP","Arbeid med Bistand (AB), Dagpenger"]
["FSABISTID","Arbeid med Bistand (AB), Ingen livsoppholdsytelse i Arena"]
["FSABISTIS","Arbeid med Bistand (AB), Tiltakspenger"]
["FSAMBF2AP","Kvalifisering i arbeidsmarkedsbedrift, Arbeidsavklaringspenger"]
["FSAMBF2DP","Kvalifisering i arbeidsmarkedsbedrift, Dagpenger"]
["FSAMBF2ID","Kvalifisering i arbeidsmarkedsbedrift, Ingen livsoppholdsytelse i Arena"]
["FSAMOAP","Arbeidsmarkedsopplæring (AMO), Arbeidsavklaringspenger"]
["FSAMOBDP","Arbeidsmarkedsopplæring (AMO) i bedrift, Dagpenger"]
["FSAMODP","Arbeidsmarkedsopplæring (AMO), Dagpenger"]
["FSAMOEAP","Arbeidsmarkedsopplæring (AMO) enkeltplass, Arbeidsavklaringspenger"]
["FSAMOEDP","Arbeidsmarkedsopplæring (AMO) enkeltplass, Dagpenger"]
["FSAMOEID","Arbeidsmarkedsopplæring (AMO) enkeltplass, Ikke dagpenger"]
["FSAMOEIS","Arbeidsmarkedsopplæring (AMO) enkeltplass, Tiltakspenger"]
["FSAMOID","Arbeidsmarkedsopplæring (AMO), Ikke dagpenger"]
["FSAMOIS","Arbeidsmarkedsopplæring (AMO), Tiltakspenger"]
["FSARBTRENAP","Arbeidstrening, Arbeidsavklaringspenger"]
["FSARBTRENDP","Arbeidstrening, Dagpenger"]
["FSARBTRENID","Arbeidstrening, Ingen livsoppholdsytelse i Arena"]
["FSARBTRENIS","Arbeidstrening, Tiltakspenger"]
["FSAVKLARAGAP","Avklaring, Arbeidsavklaringspenger"]
["FSAVKLARAGDP","Avklaring, Dagpenger"]
["FSAVKLARAGID","Avklaring, Ingen livsoppholdsytelse i Arena"]
["FSAVKLARAGIS","Avklaring, Tiltakspenger"]
["FSAVKLARSPAP","Avklaring - sykmeldt arbeidstaker, Arbeidsavklaringspenger"]
["FSAVKLARSPDP","Avklaring - sykmeldt arbeidstaker, Dagpenger"]
["FSAVKLARSPID","Avklaring - sykmeldt arbeidstaker, Ingen livsoppholdsytelse i Arena"]
["FSAVKLARSPIS","Avklaring - sykmeldt arbeidstaker, Tiltakspenger"]
["FSAVKLARSVAP","Avklaring i skjermet virksomhet, Arbeidsavklaringspenger"]
["FSAVKLARSVDP","Avklaring i skjermet virksomhet, Dagpenger"]
["FSAVKLARSVID","Avklaring i skjermet virksomhet, Ingen livsoppholdsytelse i Arena"]
["FSAVKLARSVIS","Avklaring i skjermet virksomhet, Tiltakspenger"]
["FSBIOID","Bedriftsintern opplæring (BIO), Ingen livsoppholdsytelse i Arena"]
["FSETABAP","Egenetablering, Arbeidsavklaringspenger"]
["FSETABDP","Egenetablering, Dagpenger"]
["FSETABID","Egenetablering, Ingen livsoppholdsytelse i Arena"]
["FSFUNKSJASSDP","Funksjonsassistanse, Dagpenger"]
["FSFUNKSJASSID","Funksjonsassistanse, Ingen livsoppholdsytelse i Arena"]
["FSIMELDAP","Arbeidssøkere, ikke sendt meldekort, Arbeidsavklaringspenger"]
["FSIMELDDP","Arbeidssøkere, ikke sendt meldekort, Dagpenger"]
["FSIMELDID","Arbeidssøkere, ikke sendt meldekort, Ingen livsoppholdsytelse i Arena"]
["FSIMELDIS","Arbeidssøkere, ikke sendt meldekort, Tiltakspenger"]
["FSINDOPPFAGAP","Oppfølging, Arbeidsavklaringspenger"]
["FSINDOPPFAGDP","Oppfølging, Dagpenger"]
["FSINDOPPFAGID","Oppfølging, Ingen livsoppholdsytelse i Arena"]
["FSINDOPPFAGIS","Oppfølging, Tiltakspenger"]
["FSINDOPPFSPAP","Oppfølging - sykmeldt arbeidstaker, Arbeidsavklaringspenger"]
["FSINDOPPFSPDP","Oppfølging - sykmeldt arbeidstaker, Dagpenger"]
["FSINDOPPFSPID","Oppfølging - sykmeldt arbeidstaker, Ingen livsoppholdsytelse i Arena"]
["FSINDOPPFSPIS","Oppfølging - sykmeldt arbeidstaker, Tiltakspenger"]
["FSINKLUTILSAP","Inkluderingstilskudd, Arbeidsavklaringspenger"]
["FSINKLUTILSDP","Inkluderingstilskudd, Dagpenger"]
["FSINKLUTILSID","Inkluderingstilskudd, Ingen livsoppholdsytelse i Arena"]
["FSITAP","Jobbskiftesøkere, Arbeidsavklaringspenger"]
["FSITID","Jobbskiftesøkere, Ingen livsoppholdsytelse i Arena"]
["FSITIS","Jobbskiftesøkere, Tiltakspenger"]
["FSJOBBKAP","Jobbklubb, Arbeidsavklaringspenger"]
["FSJOBBKDP","Jobbklubb, Dagpenger"]
["FSJOBBKID","Jobbklubb, Ingen livsoppholdsytelse i Arena"]
["FSJOBBKIS","Jobbklubb, Tiltakspenger"]
["FSJOBBSKAPDP","Jobbskapingsprosjekter, Dagpenger"]
["FSJOBBSKAPID","Jobbskapingsprosjekter, Ingen livsoppholdsytelse i Arena"]
["FSLONNTILAP","Tidsbegrenset lønnstilskudd, Arbeidsavklaringspenger"]
["FSLONNTILDP","Tidsbegrenset lønnstilskudd, Dagpenger"]
["FSLONNTILID","Tidsbegrenset lønnstilskudd, Ingen livsoppholdsytelse i Arena"]
["FSLONNTILIS","Tidsbegrenset lønnstilskudd, Tiltakspenger"]
["FSMENTORAP","Mentor, Arbeidsavklaringspenger"]
["FSMENTORDP","Mentor, Dagpenger"]
["FSMENTORID","Mentor, Ingen livsoppholdsytelse i Arena"]
["FSMENTORIS","Mentor, Tiltakspenger"]
["FSMIDLONTILAP","Midlertidig lønnstilskudd, Arbeidsavklaringspenger"]
["FSMIDLONTILDP","Midlertidig lønnstilskudd, Dagpenger"]
["FSMIDLONTILID","Midlertidig lønnstilskudd, Ingen livsoppholdsytelse i Arena"]
["FSMIDLONTILIS","Midlertidig lønnstilskudd, Tiltakspenger"]
["FSNETTAMODP","Nettbasert arbeidsmarkedsopplæring (AMO), Dagpenger"]
["FSNETTAMOID","Nettbasert arbeidsmarkedsopplæring (AMO), Ikke dagpenger"]
["FSNETTAMOIS","Nettbasert arbeidsmarkedsopplæring (AMO), Tiltakspenger"]
["FSOPPLT2AARDP","2-årig opplæringstiltak, Dagpenger"]
["FSOPPLT2AARID","2-årig opplæringstiltak, Ingen livsoppholdsytelse i Arena"]
["FSOPPLT2AARIS","2-årig opplæringstiltak, Tiltakspenger"]
["FSPRAKSKJERMAP","Arbeidspraksis i skjermet virksomhet, Arbeidsavklaringspenger"]
["FSPRAKSKJERMDP","Arbeidspraksis i skjermet virksomhet, Dagpenger"]
["FSPRAKSKJERMID","Arbeidspraksis i skjermet virksomhet, Ingen livsoppholdsytelse i Arena"]
["FSPRAKSKJERMIS","Arbeidspraksis i skjermet virksomhet, Tiltakspenger"]
["FSPRAKSORDAP","Arbeidspraksis i ordinær virksomhet, Arbeidsavklaringspenger"]
["FSPRAKSORDDP","Arbeidspraksis i ordinær virksomhet, Dagpenger"]
["FSPRAKSORDID","Arbeidspraksis i ordinær virksomhet, Ikke dagpenger"]
["FSPRAKSORDIS","Arbeidspraksis i ordinær virksomhet, Tiltakspenger"]
["FSSKAP","Skoleelever/studenter, Arbeidsavklaringspenger"]
["FSSKDP","Skoleelever/studenter, Dagpenger"]
["FSSKID","Skoleelever/studenter, Ingen livsoppholdsytelse i Arena"]
["FSSKIS","Skoleelever/studenter, Tiltakspenger"]
["FSTILPERBEDAP","Tilretteleggingstilskudd for arbeidssøker, Arbeidsavklaringspenger"]
["FSTILPERBEDDP","Tilretteleggingstilskudd for arbeidssøker, Dagpenger"]
["FSTILPERBEDID","Tilretteleggingstilskudd for arbeidssøker, Ingen livsoppholdsytelse i Arena"]
["FSTILRTILSKID","Tilrettelegging, Ingen livsoppholdsytelse i Arena"]
["FSUTBHLETTPSAP","Utredning/behandling lettere psykiske lidelser, Arbeidsavklaringspenger"]
["FSUTBHLETTPSDP","Utredning/behandling lettere psykiske lidelser, Dagpenger"]
["FSUTBHLETTPSID","Utredning/behandling lettere psykiske lidelser, Ingen livsoppholdsytelse i Arena"]
["FSUTBHSAMLIDP","Utredning/behandling sammensatte lidelser, Dagpenger"]
["FSUTBHSAMLIID","Utredning/behandling sammensatte lidelser, Ingen livsoppholdsytelse i Arena"]
["FSUTDYRKAP","Utdanning, Arbeidsavklaringspenger"]
["FSUTDYRKDP","Utdanning, Dagpenger"]
["FSUTDYRKID","Utdanning, Ingen livsoppholdsytelse i Arena"]
["FSUTDYRKIS","Utdanning, Tiltakspenger"]
["FSUTLANDAP","Arbeidssøkere uten arbeid, i utlandet, Arbeidsavklaringspenger"]
["FSUTLANDDP","Arbeidssøkere uten arbeid, i utlandet, Dagpenger"]
["FSUTLANDID","Arbeidssøkere uten arbeid, i utlandet, Ingen livsoppholdsytelse i Arena"]
["FSUTVAOONAVAP","Utvidet avklaring og oppfølging i NAV, Arbeidsavklaringspenger"]
["FSUTVAOONAVDP","Utvidet avklaring og oppfølging i NAV, Dagpenger"]
["FSUTVAOONAVDP","Utvidet oppfølging i NAV, Dagpenger"]
["FSUTVAOONAVID","Utvidet avklaring og oppfølging i NAV, Ingen livsoppholdsytelse i Arena"]
["FSUTVAOONAVID","Utvidet oppfølging i NAV, Ingen livsoppholdsytelse i Arena"]
["FSUTVAOONAVIS","Utvidet avklaring og oppfølging i NAV, Tiltakspenger"]
["FSUTVAOONAVIS","Utvidet oppfølging i NAV, Tiltakspenger"]
["FSVIAP","Vikarer tilknyttet vikartjenesten, Arbeidsavklaringspenger"]
["FSVIDP","Vikarer tilknyttet vikartjenesten, dagpenger"]
["FSVIID","Vikarer tilknyttet vikartjenesten, Ingen livsoppholdsytelse i Arena"]
["HLIPAP","Helt ledige, ikke permitterte, Arbeidsavklaringspenger"]
["HLIPDP","Helt ledige, ikke permitterte, dagpenger"]
["HLIPID","Helt ledige, ikke permitterte, Ingen livsoppholdsytelse i Arena"]
["HLIPIS","Helt ledige, ikke permitterte, Tiltakspenger"]
["HLPEDP","Helt ledige, permitterte, dagpenger"]
["HLPFDP","Helt ledige, permitterte fra fiskeindustrien, dagpenger"]
["NONOAP","Nedsatt arbeidsevne, venter på oppfølgingsvedtak, Arbeidsavklaringspenger"]
["NONODP","Nedsatt arbeidsevne, venter på oppfølgingsvedtak, Dagpenger"]
["NONOID","Nedsatt arbeidsevne, venter på oppfølgingsvedtak, Ingen livsoppholdsytelse i Arena"]
["NONOIS","Nedsatt arbeidsevne, venter på oppfølgingsvedtak, Tiltakspenger"]
["NPNPAP","Nedsatt arbeidsevne, venter på plan, Arbeidsavklaringspenger"]
["NPNPDP","Nedsatt arbeidsevne, venter på plan, Dagpenger"]
["NPNPID","Nedsatt arbeidsevne, venter på plan, Ingen livsoppholdsytelse i Arena"]
["NPNPIS","Nedsatt arbeidsevne, venter på plan, Tiltakspenger"]
["NTABISTAP","Arbeid med bistand (AB), Arbeidsavklaringspenger"]
["NTABISTDP","Arbeid med bistand (AB), Dagpenger"]
["NTABISTID","Arbeid med bistand (AB), Ingen livsoppholdsytelse i Arena"]
["NTABISTIS","Arbeid med bistand (AB), Tiltakspenger"]
["NTAMBF2AP","Kvalifisering i arbeidsmarkedsbedrift, Arbeidsavklaringspenger"]
["NTAMBF2DP","Kvalifisering i arbeidsmarkedsbedrift, Dagpenger"]
["NTAMBF2ID","Kvalifisering i arbeidsmarkedsbedrift, Ingen livsoppholdsytelse i Arena"]
["NTAMBF2IS","Kvalifisering i arbeidsmarkedsbedrift, Tiltakspenger"]
["NTAMBF3AP","Tilrettelagt arbeid i arbeidsmarkedsbedrift, Arbeidsavklaringspenger"]
["NTAMBF3DP","Tilrettelagt arbeid i arbeidsmarkedsbedrift, Dagpenger"]
["NTAMBF3ID","Tilrettelagt arbeid i arbeidsmarkedsbedrift, Ingen livsoppholdsytelse i Arena"]
["NTAMOAP","Arbeidsmarkedsopplæring (AMO), Arbeidsavklaringspenger"]
["NTAMODP","Arbeidsmarkedsopplæring (AMO), Dagpenger"]
["NTAMOEAP","Arbeidsmarkedsopplæring (AMO) enkeltplass, Arbeidsavklaringspenger"]
["NTAMOEDP","Arbeidsmarkedsopplæring (AMO) enkeltplass, Dagpenger"]
["NTAMOEID","Arbeidsmarkedsopplæring (AMO) enkeltplass, Ingen livsoppholdsytelse i Arena"]
["NTAMOEIS","Arbeidsmarkedsopplæring (AMO) enkeltplass, Tiltakspenger"]
["NTAMOID","Arbeidsmarkedsopplæring (AMO), Ingen livsoppholdsytelse i Arena"]
["NTAMOIS","Arbeidsmarkedsopplæring (AMO), Tiltakspenger"]
["NTARBDOGNSMAP","Arbeidsrettet rehabilitering (døgn) - sykmeldt arbeidstaker, Arbeidsavklaringspenger"]
["NTARBDOGNSMID","Arbeidsrettet rehabilitering (døgn) - sykmeldt arbeidstaker, Ingen livsoppholdsytelse i Arena"]
["NTARBFORBAP","Arbeidsforberedende trening, Arbeidsavklaringspenger"]
["NTARBFORBDP","Arbeidsforberedende trening, Dagpenger"]
["NTARBFORBID","Arbeidsforberedende trening, Ingen livsoppholdsytelse i Arena"]
["NTARBFORBIS","Arbeidsforberedende trening, Tiltakspenger"]
["NTARBRDAGSMAP","Arbeidsrettet rehabilitering (dag) - sykmeldt arbeidstaker, Arbeidsavklaringspenger"]
["NTARBRDAGSMDP","Arbeidsrettet rehabilitering (dag) - sykmeldt arbeidstaker, Dagpenger"]
["NTARBRDAGSMID","Arbeidsrettet rehabilitering (dag) - sykmeldt arbeidstaker, Ingen livsoppholdsytelse i Arena"]
["NTARBRDAGSMIS","Arbeidsrettet rehabilitering (dag) - sykmeldt arbeidstaker, Tiltakspenger"]
["NTARBRRDOGNAP","Arbeidsrettet rehabilitering (døgn), Arbeidsavklaringspenger"]
["NTARBRRDOGNID","Arbeidsrettet rehabilitering (døgn), Ingen livsoppholdsytelse i Arena"]
["NTARBRRDOGNIS","Arbeidsrettet rehabilitering (døgn), Tiltakspenger"]
["NTARBRRHDAGAP","Arbeidsrettet rehabilitering (dag), Arbeidsavklaringspenger"]
["NTARBRRHDAGDP","Arbeidsrettet rehabilitering (dag), Dagpenger"]
["NTARBRRHDAGID","Arbeidsrettet rehabilitering (dag), Ingen livsoppholdsytelse i Arena"]
["NTARBRRHDAGIS","Arbeidsrettet rehabilitering (dag), Tiltakspenger"]
["NTARBTRENAP","Arbeidstrening, Arbeidsavklaringspenger"]
["NTARBTRENDP","Arbeidstrening, Dagpenger"]
["NTARBTRENID","Arbeidstrening, Ingen livsoppholdsytelse i Arena"]
["NTARBTRENIS","Arbeidstrening, Tiltakspenger"]
["NTAVKLARAGAP","Avklaring, Arbeidsavklaringspenger"]
["NTAVKLARAGDP","Avklaring, Dagpenger"]
["NTAVKLARAGID","Avklaring, Ingen livsoppholdsytelse i Arena"]
["NTAVKLARAGIS","Avklaring, Tiltakspenger"]
["NTAVKLARSPAP","Avklaring - sykmeldt arbeidstaker, Arbeidsavklaringspenger"]
["NTAVKLARSPDP","Avklaring - sykmeldt arbeidstaker, Dagpenger"]
["NTAVKLARSPID","Avklaring - sykmeldt arbeidstaker, Ingen livsoppholdsytelse i Arena"]
["NTAVKLARSPIS","Avklaring - sykmeldt arbeidstaker, Tiltakspenger"]
["NTAVKLARSVAP","Avklaring i skjermet virksomhet, Arbeidsavklaringspenger"]
["NTAVKLARSVDP","Avklaring i skjermet virksomhet, Dagpenger"]
["NTAVKLARSVID","Avklaring i skjermet virksomhet, Ingen livsoppholdsytelse i Arena"]
["NTAVKLARSVIS","Avklaring i skjermet virksomhet, Tiltakspenger"]
["NTETABAP","Egenetablering, Arbeidsavklaringspenger"]
["NTETABID","Egenetablering, Ingen livsoppholdsytelse i Arena"]
["NTFUNKSJASSAP","Funksjonsassistanse, Arbeidsavklaringspenger"]
["NTFUNKSJASSDP","Funksjonsassistanse, Dagpenger"]
["NTFUNKSJASSID","Funksjonsassistanse, Ingen livsoppholdsytelse i Arena"]
["NTINDOPPFAGAP","Oppfølging, Arbeidsavklaringspenger"]
["NTINDOPPFAGDP","Oppfølging, Dagpenger"]
["NTINDOPPFAGID","Oppfølging, Ingen livsoppholdsytelse i Arena"]
["NTINDOPPFAGIS","Oppfølging, Tiltakspenger"]
["NTINDOPPFSPAP","Oppfølging - sykmeldt arbeidstaker, Arbeidsavklaringspenger"]
["NTINDOPPFSPDP","Oppfølging - sykmeldt arbeidstaker, Dagpenger"]
["NTINDOPPFSPID","Oppfølging - sykmeldt arbeidstaker, Ingen livsoppholdsytelse i Arena"]
["NTINDOPPFSPIS","Oppfølging - sykmeldt arbeidstaker, Tiltakspenger"]
["NTINDOPPRFAP","Resultatbasert finansiering, Arbeidsavklaringspenger"]
["NTINDOPPRFDP","Resultatbasert finansiering, Dagpenger"]
["NTINDOPPRFID","Resultatbasert finansiering, Ingen livsoppholdsytelse i Arena"]
["NTINDOPPRFIS","Resultatbasert finansiering, Tiltakspenger"]
["NTINKLUTILSAP","Inkluderingstilskudd, Arbeidsavklaringspenger"]
["NTINKLUTILSDP","Inkluderingstilskudd, Dagpenger"]
["NTINKLUTILSID","Inkluderingstilskudd, Ingen livsoppholdsytelse i Arena"]
["NTJOBBKAP","Jobbklubb, Arbeidsavklaringspenger"]
["NTJOBBKDP","Jobbklubb, Dagpenger"]
["NTJOBBKID","Jobbklubb, Ingen livsoppholdsytelse i Arena"]
["NTJOBBKIS","Jobbklubb, Tiltakspenger"]
["NTLONNTILAAPAP","AAP som lønnstilskudd, Arbeidsavklaringspenger"]
["NTLONNTILAAPDP","AAP som lønnstilskudd, Dagpenger"]
["NTLONNTILAAPID","AAP som lønnstilskudd, Ingen livsoppholdsytelse i Arena"]
["NTLONNTILAP","Tidsbegrenset lønnstilskudd, Arbeidsavklaringspenger"]
["NTLONNTILDP","Tidsbegrenset lønnstilskudd, Dagpenger"]
["NTLONNTILID","Tidsbegrenset lønnstilskudd, Ingen livsoppholdsytelse i Arena"]
["NTLONNTILIS","Tidsbegrenset lønnstilskudd, Tiltakspenger"]
["NTMENTORAP","Mentor, Arbeidsavklaringspenger"]
["NTMENTORDP","Mentor, Dagpenger"]
["NTMENTORID","Mentor, Ingen livsoppholdsytelse i Arena"]
["NTMENTORIS","Mentor, Tiltakspenger"]
["NTMIDLONTILAP","Midlertidig lønnstilskudd, Arbeidsavklaringspenger"]
["NTMIDLONTILDP","Midlertidig lønnstilskudd, Dagpenger"]
["NTMIDLONTILID","Midlertidig lønnstilskudd, Ingen livsoppholdsytelse i Arena"]
["NTMIDLONTILIS","Midlertidig lønnstilskudd, Tiltakspenger"]
["NTNETTAMOAP","Nettbasert arbeidsmarkedsopplæring (AMO), Arbeidsavklaringspenger"]
["NTNETTAMODP","Nettbasert arbeidsmarkedsopplæring (AMO), Dagpenger"]
["NTNETTAMOID","Nettbasert arbeidsmarkedsopplæring (AMO), Ingen livsoppholdsytelse i Arena"]
["NTOPPLT2AARAP","2-årig opplæringstiltak, Arbeidsavklaringspenger"]
["NTOPPLT2AARDP","2-årig opplæringstiltak, Dagpenger"]
["NTOPPLT2AARID","2-årig opplæringstiltak, Ingen livsoppholdsytelse i Arena"]
["NTOPPLT2AARIS","2-årig opplæringstiltak, Tiltakspenger"]
["NTPRAKSKJERMAP","Arbeidspraksis i skjermet virksomhet, Arbeidsavklaringspenger"]
["NTPRAKSKJERMDP","Arbeidspraksis i skjermet virksomhet, Dagpenger"]
["NTPRAKSKJERMID","Arbeidspraksis i skjermet virksomhet, Ingen livsoppholdsytelse i Arena"]
["NTPRAKSKJERMIS","Arbeidspraksis i skjermet virksomhet, Tiltakspenger"]
["NTPRAKSORDAP","Arbeidspraksis i ordinær virksomhet, Arbeidsavklaringspenger"]
["NTPRAKSORDDP","Arbeidspraksis i ordinær virksomhet, Dagpenger"]
["NTPRAKSORDID","Arbeidspraksis i ordinær virksomhet, Ingen livsoppholdsytelse i Arena"]
["NTPRAKSORDIS","Arbeidspraksis i ordinær virksomhet, Tiltakspenger"]
["NTPVID","Produksjonsverksted (PV), Ingen livsoppholdsytelse i Arena"]
["NTSUPPEMPAP","Supported Employment (SE), Arbeidsavklaringspenger"]
["NTSUPPEMPDP","Supported Employment (SE), Dagpenger"]
["NTSUPPEMPID","Supported Employment (SE), Ingen livsoppholdsytelse i Arena"]
["NTSUPPEMPIS","Supported Employment (SE), Tiltakspenger"]
["NTTIDSUBLONNAP","Tidsubestemt lønnstilskudd, Arbeidsavklaringspenger"]
["NTTIDSUBLONNDP","Tidsubestemt lønnstilskudd, Dagpenger"]
["NTTIDSUBLONNID","Tidsubestemt lønnstilskudd, Ingen livsoppholdsytelse i Arena"]
["NTTIDSUBLONNIS","Tidsubestemt lønnstilskudd, Tiltakspenger"]
["NTTILPERBEDAP","Tilretteleggingstilskudd for arbeidssøker, Arbeidsavklaringspenger"]
["NTTILPERBEDDP","Tilretteleggingstilskudd for arbeidssøker, Dagpenger"]
["NTTILPERBEDID","Tilretteleggingstilskudd for arbeidssøker, Ingen livsoppholdsytelse i Arena"]
["NTTILPERBEDIS","Tilretteleggingstilskudd for arbeidssøker, Tiltakspenger"]
["NTTILRTILSKAP","Tilrettelegging, Arbeidsavklaringspenger"]
["NTTILRTILSKDP","Tilrettelegging, Dagpenger"]
["NTTILRTILSKID","Tilrettelegging, Ingen livsoppholdsytelse i Arena"]
["NTTILRTILSKIS","Tilrettelegging, Tiltakspenger"]
["NTUTBHLETTPSAP","Utredning/behandling lettere psykiske lidelser, Arbeidsavklaringspenger"]
["NTUTBHLETTPSDP","Utredning/behandling lettere psykiske lidelser, Dagpenger"]
["NTUTBHLETTPSID","Utredning/behandling lettere psykiske lidelser, Ingen livsoppholdsytelse i Arena"]
["NTUTBHLETTPSIS","Utredning/behandling lettere psykiske lidelser, Tiltakspenger"]
["NTUTBHSAMLIAP","Utredning/behandling sammensatte lidelser, Arbeidsavklaringspenger"]
["NTUTBHSAMLIID","Utredning/behandling sammensatte lidelser, Ingen livsoppholdsytelse i Arena"]
["NTUTDYRKAP","Utdanning, Arbeidsavklaringspenger"]
["NTUTDYRKDP","Utdanning, Dagpenger"]
["NTUTDYRKID","Utdanning, Ingen livsoppholdsytelse i Arena"]
["NTUTDYRKIS","Utdanning, Tiltakspenger"]
["NTUTVAOONAVAP","Utvidet avklaring og oppfølging i NAV, Arbeidsavklaringspenger"]
["NTUTVAOONAVAP","Utvidet oppfølging i NAV, Arbeidsavklaringspenger"]
["NTUTVAOONAVDP","Utvidet avklaring og oppfølging i NAV, Dagpenger"]
["NTUTVAOONAVDP","Utvidet oppfølging i NAV, Dagpenger"]
["NTUTVAOONAVID","Utvidet avklaring og oppfølging i NAV, Ingen livsoppholdsytelse i Arena"]
["NTUTVAOONAVID","Utvidet oppfølging i NAV, Ingen livsoppholdsytelse i Arena"]
["NTUTVAOONAVIS","Utvidet avklaring og oppfølging i NAV, Tiltakspenger"]
["NTUTVAOONAVIS","Utvidet oppfølging i NAV, Tiltakspenger"]
["NTVARLONTILAP","Varig lønnstilskudd, Arbeidsavklaringspenger"]
["NTVARLONTILDP","Varig lønnstilskudd, Dagpenger"]
["NTVARLONTILID","Varig lønnstilskudd, Ingen livsoppholdsytelse i Arena"]
["NTVASVAP","Varig tilrettelagt arbeid i skjermet virksomhet, Arbeidsavklaringspenger"]
["NTVASVDP","Varig tilrettelagt arbeid i skjermet virksomhet, Dagpenger"]
["NTVASVID","Varig tilrettelagt arbeid i skjermet virksomhet, Ingen livsoppholdsytelse i Arena"]
["NTVASVIS","Varig tilrettelagt arbeid i skjermet virksomhet, Tiltakspenger"]
["NTVATIARORAP","Varig tilrettelagt arbeid i ordinær virksomhet, Arbeidsavklaringspenger"]
["NTVATIARORID","Varig tilrettelagt arbeid i ordinær virksomhet, Ingen livsoppholdsytelse i Arena"]
["NTVVAP","Varig vernet arbeid (VVA), Arbeidsavklaringspenger"]
["NTVVID","Varig vernet arbeid (VVA), Ingen livsoppholdsytelse i Arena"]
["NUNUAP","Nedsatt arbeidsevne, ikke tiltaksbehov, Arbeidsavklaringspenger"]
["NUNUDP","Nedsatt arbeidsevne, ikke tiltaksbehov, Dagpenger"]
["NUNUID","Nedsatt arbeidsevne, ikke tiltaksbehov, Ingen livsoppholdsytelse i Arena"]
["NUNUIS","Nedsatt arbeidsevne, ikke tiltaksbehov, Tiltakspenger"]
["NVNVAP","Nedsatt arbeidsevne, venter på tiltak, Arbeidsavklaringspenger"]
["NVNVDP","Nedsatt arbeidsevne, venter på tiltak, Dagpenger"]
["NVNVID","Nedsatt arbeidsevne, venter på tiltak, Ingen livsoppholdsytelse i Arena"]
["NVNVIS","Nedsatt arbeidsevne, venter på tiltak, Tiltakspenger"]